bitfinex/quotes_BTCUSD_20250226
["timestamp","ask_amount","ask_price","bid_price","bid_amount"]
[1740604253239,0.18985158,84571.0,84569.0,0.000846]
[1740604253479,0.19460258,84571.0,84569.0,0.000846]
[1740604254205,0.18985158,84571.0,84569.0,0.000846]
[1740604254362,0.19460158,84571.0,84569.0,0.000846]
[1740604254540,0.23353634,84571.0,84569.0,0.000846]
[1740604255945,0.23353634,84571.0,84570.0,0.00138585]
[1740604258607,0.19460158,84571.0,84570.0,0.00138585]
[1740604259905,0.18985158,84571.0,84570.0,0.02138585]
[1740604260130,0.18985158,84571.0,84570.0,0.00138585]
[1740604260565,0.18985158,84571.0,84570.0,0.02138585]
[1740604260765,0.18985158,84571.0,84570.0,0.04138585]
[1740604260977,0.18605464,84571.0,84570.0,0.04138585]
[1740604262031,0.18605464,84571.0,84570.0,0.15539148]
[1740604262440,0.00868964,84571.0,84570.0,0.14199148]
[1740604262641,0.236484,84573.0,84570.0,0.14199148]
[1740604262642,0.413839,84574.0,84573.0,0.04]
[1740604263259,0.363839,84574.0,84573.0,0.05454085]
[1740604263465,0.236471,84577.0,84571.0,0.01454085]
[1740604263466,0.413745,84593.0,84592.0,0.05454085]
[1740604264185,0.413745,84593.0,84592.0,0.0626305]
[1740604264426,0.413745,84593.0,84592.0,0.06889355]
[1740604265629,0.236396,84604.0,84592.0,0.06889355]
[1740604265630,0.413692,84604.0,84603.0,0.04]
[1740604265787,0.413692,84604.0,84603.0,0.14384085]
[1740604266619,0.413692,84604.0,84603.0,0.1519305]
[1740604267540,0.413692,84604.0,84603.0,0.04808965]
[1740604268525,0.413692,84604.0,84603.0,0.0626305]
[1740604270216,0.413692,84604.0,84603.0,0.1389305]
[1740604270415,0.00012211,84608.0,84607.0,0.02]
[1740604270640,0.17741011,84608.0,84607.0,0.07619525]
[1740604270956,0.17741011,84608.0,84607.0,0.09059934]
[1740604271158,0.17741011,84608.0,84607.0,0.05454085]
[1740604272006,0.17741011,84608.0,84607.0,0.0626305]
[1740604272800,0.17741011,84608.0,84607.0,0.0426305]
[1740604272985,0.17741011,84608.0,84607.0,0.0626305]
[1740604273390,0.17741011,84608.0,84607.0,0.0426305]
[1740604273711,0.17741011,84608.0,84607.0,0.07582206]
[1740604274086,0.17783411,84608.0,84607.0,0.07582206]
[1740604274287,0.17783411,84608.0,84607.0,0.06144965]
[1740604274697,0.17783411,84608.0,84607.0,0.04144965]
[1740604274867,0.17783411,84608.0,84607.0,0.06144965]
[1740604276019,0.17783411,84608.0,84607.0,0.0759905]
[1740604276227,0.17783411,84608.0,84607.0,0.06144965]
[1740604276794,0.17783411,84608.0,84607.0,0.0759905]
[1740604276998,0.1776507,84637.0,84636.0,0.04]
[1740604277202,0.17805998,84637.0,84636.0,0.05336]
[1740604277411,0.17805998,84637.0,84636.0,0.04]
[1740604277613,0.17805998,84637.0,84636.0,0.02]
[1740604277818,0.17725998,84637.0,84636.0,0.02]
[1740604278020,0.17725998,84637.0,84636.0,0.04]
[1740604278897,0.17725998,84637.0,84636.0,0.02]
[1740604279021,0.17725998,84637.0,84636.0,0.04]
[1740604280246,0.17680678,84637.0,84636.0,0.04]
[1740604281453,0.23628,84645.0,84640.0,0.05454085]
[1740604281676,0.236269,84650.0,84645.0,0.05454085]
[1740604281677,0.17775443,84646.0,84645.0,0.05454085]
[1740604282027,0.00012273,84646.0,84645.0,0.07454085]
[1740604282180,0.17733073,84646.0,84645.0,0.07454085]
[1740604282583,0.17733073,84646.0,84645.0,0.05454085]
[1740604282824,0.17733073,84646.0,84645.0,0.06068575]
[1740604283047,0.17733073,84646.0,84645.0,0.04068575]
[1740604283226,0.17733073,84646.0,84645.0,0.05454085]
[1740604283514,0.17733073,84646.0,84645.0,0.0626305]
[1740604283896,0.17733073,84646.0,84645.0,0.06144965]
[1740604284097,0.17733073,84646.0,84645.0,0.04808965]
[1740604284319,0.17733073,84646.0,84645.0,0.0626305]
[1740604284638,0.17733073,84646.0,84645.0,0.07022955]
[1740604285056,0.17733073,84646.0,84645.0,0.0621399]
[1740604285239,0.17733073,84646.0,84645.0,0.03454085]
[1740604285432,0.17733073,84646.0,84645.0,0.05454085]
[1740604286992,0.17733073,84646.0,84645.0,0.0626305]
[1740604287195,0.17775443,84646.0,84645.0,0.0626305]
[1740604287419,0.17775443,84646.0,84645.0,0.07022955]
[1740604288422,0.17775443,84646.0,84645.0,0.02808965]
[1740604288782,0.17775443,84646.0,84645.0,0.04808965]
[1740604290196,0.17775443,84646.0,84645.0,0.06107473]
[1740604290811,0.50605443,84646.0,84645.0,0.06107473]
[1740604291439,0.17775443,84646.0,84645.0,0.06107473]
[1740604291663,0.00054643,84646.0,84645.0,0.17078305]
[1740604291871,0.224827,84685.0,84684.0,0.02]
[1740604292066,0.22494971,84685.0,84684.0,0.02]
[1740604292309,0.177129,84684.0,84683.0,0.04]
[1740604293113,0.177129,84684.0,84683.0,0.04808965]
[1740604293995,0.177129,84684.0,84683.0,0.02808965]
[1740604294202,0.177129,84684.0,84683.0,0.04808965]
[1740604294411,0.177129,84684.0,84683.0,0.00808965]
[1740604294612,0.177129,84684.0,84683.0,0.02808965]
[1740604295000,0.177129,84684.0,84683.0,0.00808965]
[1740604295200,0.177129,84684.0,84683.0,0.02808965]
[1740604295413,0.177129,84684.0,84683.0,0.04808965]
[1740604296965,0.177129,84684.0,84683.0,0.07722354]
[1740604298506,0.177129,84684.0,84683.0,0.11174861]
[1740604298701,0.1775525,84684.0,84683.0,0.11174861]
[1740604298902,0.1775525,84684.0,84683.0,0.13746432]
[1740604299109,0.1775525,84684.0,84683.0,0.21806432]
[1740604299309,0.1775525,84684.0,84683.0,0.27404259]
[1740604299508,0.0004235,84684.0,84683.0,0.60134259]
[1740604299712,0.0004235,84684.0,84683.0,0.79847359]
[1740604299901,0.1775525,84684.0,84683.0,0.58134259]
[1740604300100,0.14943183,84684.0,84683.0,0.62134259]
[1740604300524,0.14943183,84684.0,84683.0,0.87134259]
[1740604300863,0.00012271,84685.0,84684.0,0.09454085]
[1740604301056,0.0053624,84687.0,84686.0,0.09454085]
[1740604301280,0.0053624,84687.0,84686.0,0.21101912]
[1740604301404,0.0004239,84693.0,84692.0,0.08]
[1740604301607,0.1775339,84693.0,84692.0,0.09051912]
[1740604301837,0.1775339,84693.0,84692.0,0.14739137]
[1740604302066,0.236145,84694.0,84693.0,0.09454085]
[1740604302289,0.413253,84694.0,84693.0,0.14383912]
[1740604302513,0.413253,84694.0,84693.0,0.34051912]
[1740604302741,0.413253,84694.0,84693.0,0.38836419]
[1740604302959,0.413253,84694.0,84693.0,0.39901641]
[1740604303179,0.0004238,84697.0,84696.0,0.06]
[1740604303423,0.0004238,84697.0,84696.0,0.30916566]
[1740604303660,0.0004238,84697.0,84696.0,0.13041014]
[1740604303897,0.236038,84732.0,84696.0,0.13041014]
[1740604303898,0.1774726,84722.0,84721.0,0.05454085]
[1740604304112,0.17788172,84722.0,84721.0,0.04786085]
[1740604304353,0.17788172,84722.0,84721.0,0.06786085]
[1740604304587,0.17788172,84722.0,84721.0,0.07464694]
[1740604304827,0.17788172,84722.0,84721.0,0.09571544]
[1740604305285,0.17788172,84722.0,84721.0,0.13024051]
[1740604305740,0.17788172,84722.0,84721.0,0.11024051]
[1740604305962,0.17788172,84722.0,84721.0,0.13024051]
[1740604306180,0.17788172,84722.0,84721.0,0.11024051]
[1740604306404,0.17788172,84722.0,84721.0,0.13024051]
[1740604306620,0.17788172,84722.0,84721.0,0.09571544]
[1740604307713,0.17788172,84722.0,84721.0,0.07571544]
[1740604307881,0.17788172,84722.0,84721.0,0.09571544]
[1740604309371,0.17788172,84722.0,84721.0,0.0743885]
[1740604310084,0.17788172,84722.0,84721.0,0.0610685]
[1740604310983,0.17788172,84722.0,84721.0,0.07560935]
[1740604312188,0.00040912,84722.0,84721.0,0.07560935]
[1740604312393,0.00040912,84722.0,84721.0,0.09560935]
[1740604312394,0.17745812,84722.0,84721.0,0.09560935]
[1740604312615,0.17745812,84722.0,84721.0,0.15344061]
[1740604312822,0.17745812,84722.0,84721.0,0.16690033]
[1740604313101,0.17745812,84722.0,84721.0,0.14690033]
[1740604314264,0.17745812,84722.0,84721.0,0.12359414]
[1740604314586,0.17745812,84722.0,84721.0,0.12345442]
[1740604314965,0.17745812,84722.0,84721.0,0.08892935]
[1740604315298,0.17985892,84722.0,84721.0,0.08892935]
[1740604315746,0.17985892,84722.0,84721.0,0.05560935]
[1740604315947,0.17985892,84722.0,84721.0,0.0410685]
[1740604316242,0.17985892,84722.0,84721.0,0.0610685]
[1740604316688,0.17985892,84722.0,84721.0,0.0210685]
[1740604317109,0.50815892,84722.0,84721.0,0.0210685]
[1740604317486,0.50815892,84722.0,84720.0,0.02387867]
[1740604317487,0.258251,84721.0,84720.0,0.02387867]
[1740604317736,0.586551,84721.0,84720.0,0.02387867]
[1740604317934,0.70640765,84721.0,84720.0,0.02387867]
[1740604318141,0.586551,84721.0,84720.0,0.02387867]
[1740604318417,0.252585,84705.0,84704.0,0.03602107]
[1740604319331,0.2549858,84705.0,84704.0,0.03602107]
[1740604319851,0.4062008,84705.0,84698.0,0.02]
[1740604320131,0.27152203,84700.0,84699.0,0.0208468]
[1740604320331,0.59982203,84700.0,84699.0,0.0208468]
[1740604320968,0.59982203,84700.0,84699.0,0.0008468]
[1740604321727,0.66840739,84700.0,84699.0,0.0008468]
[1740604321929,0.64612203,84700.0,84699.0,0.0008468]
[1740604324607,0.66466752,84700.0,84699.0,0.0008468]
[1740604325538,0.74276752,84700.0,84699.0,0.0008468]
[1740604325738,0.74276752,84700.0,84672.0,0.02]
[1740604325739,0.48757252,84700.0,84671.0,0.02]
[1740604325943,0.17716,84669.0,84668.0,0.04]
[1740604326270,0.17716,84669.0,84668.0,0.04745251]
[1740604326472,0.17716,84669.0,84668.0,0.06073251]
[1740604326673,0.17716,84669.0,84668.0,0.06782085]
[1740604326891,0.3283,84713.0,84700.0,0.04]
[1740604327083,0.1794938,84701.0,84700.0,0.04]
[1740604327477,0.1794938,84701.0,84700.0,0.05454085]
[1740604328240,0.1794938,84701.0,84700.0,0.03454085]
[1740604328444,0.1794938,84701.0,84700.0,0.05454085]
[1740604328601,0.1794938,84701.0,84700.0,0.04738973]
[1740604328803,0.1794938,84701.0,84700.0,0.06738973]
[1740604329004,0.1794938,84701.0,84700.0,0.04738973]
[1740604329220,0.1794938,84701.0,84700.0,0.06738973]
[1740604329613,0.1794938,84701.0,84700.0,0.03284888]
[1740604329976,0.1794938,84701.0,84700.0,0.04803965]
[1740604330574,0.1794938,84701.0,84700.0,0.00803965]
[1740604330792,0.5077938,84701.0,84700.0,0.04803965]
[1740604331211,0.68769678,84701.0,84700.0,0.00803965]
[1740604331356,0.68769678,84701.0,84692.0,0.00803965]
[1740604331357,0.17711,84693.0,84692.0,0.00803965]
[1740604331539,0.17711,84693.0,84692.0,0.02803965]
[1740604331734,0.17711,84693.0,84692.0,0.04803965]
[1740604331963,0.17711,84693.0,84692.0,0.02803965]
[1740604332161,0.17711,84693.0,84692.0,0.04803965]
[1740604332563,0.19565604,84693.0,84692.0,0.04803965]
[1740604332767,0.19565604,84693.0,84692.0,0.04]
[1740604333592,0.33056603,84696.0,84692.0,0.02]
[1740604333766,0.33056603,84696.0,84682.0,0.00803965]
[1740604333767,0.177127,84685.0,84684.0,0.02]
[1740604333966,0.177129,84684.0,84683.0,0.00803965]
[1740604334171,0.505429,84684.0,84683.0,0.00803965]
[1740604334817,0.505429,84684.0,84683.0,0.02803965]
[1740604334973,0.505429,84684.0,84683.0,0.00803965]
[1740604335162,0.588629,84684.0,84683.0,0.00803965]
[1740604335586,0.588629,84684.0,84676.0,0.00012271]
[1740604335587,0.177143,84677.0,84676.0,0.00012271]
[1740604336684,0.177143,84677.0,84676.0,0.02012271]
[1740604336887,0.177143,84677.0,84676.0,0.00012271]
[1740604338004,0.552043,84677.0,84676.0,0.00012271]
[1740604338171,0.67189965,84677.0,84676.0,0.00012271]
[1740604339325,0.75439965,84677.0,84676.0,0.00012271]
[1740604339499,0.236214,84669.0,84657.0,0.00800565]
[1740604339704,0.27161003,84658.0,84657.0,0.00800565]
[1740604340825,0.27161003,84658.0,84645.0,0.000847]
[1740604340826,0.177208,84646.0,84645.0,0.000847]
[1740604341025,0.505508,84646.0,84645.0,0.000847]
[1740604341370,0.52406439,84646.0,84645.0,0.000847]
[1740604341788,0.72062104,84646.0,84645.0,0.000847]
[1740604342290,0.60076439,84646.0,84645.0,0.000847]
[1740604343636,0.60076439,84646.0,84645.0,0.000147]
[1740604343848,0.582208,84646.0,84645.0,0.000147]
[1740604344282,0.50645778,84646.0,84645.0,0.000147]
[1740604348032,0.42975778,84646.0,84645.0,0.000147]
[1740604348907,0.54859426,84646.0,84645.0,0.000147]
[1740604349141,0.42975778,84646.0,84645.0,0.000147]
[1740604351008,0.09324593,84646.0,84645.0,0.020147]
[1740604351215,0.236149,84692.0,84691.0,0.04]
[1740604351445,1.180312,84724.0,84691.0,0.04]
[1740604351446,0.2364896,84722.0,84692.0,0.07454085]
[1740604351699,0.2364896,84722.0,84692.0,0.09619344]
[1740604351700,0.0004236,84722.0,84692.0,0.09619344]
[1740604351957,0.00054624,84693.0,84692.0,0.09619344]
[1740604352165,0.236082,84716.0,84715.0,0.05454085]
[1740604352334,0.0004236,84722.0,84719.0,0.05454085]
[1740604352695,0.1774539,84731.0,84730.0,0.04]
[1740604352896,0.00083202,84731.0,84730.0,0.08782085]
[1740604353107,0.00083202,84731.0,84730.0,0.12364462]
[1740604353313,0.0004232,84742.0,84734.0,0.09454085]
[1740604353516,0.0004232,84742.0,84734.0,0.09619256]
[1740604353717,0.00520221,84735.0,84734.0,0.14279256]
[1740604353940,0.177012,84740.0,84739.0,0.12114085]
[1740604354347,0.2364332,84742.0,84741.0,0.02]
[1740604354521,0.1774302,84742.0,84741.0,0.43227574]
[1740604354914,0.1774302,84742.0,84741.0,0.45309557]
[1740604355110,0.18270623,84742.0,84741.0,0.45309557]
[1740604355543,0.18270623,84742.0,84741.0,0.07536068]
[1740604356241,0.18270623,84742.0,84741.0,0.06081983]
[1740604357037,0.18270623,84742.0,84741.0,0.0625118]
[1740604357240,0.00569923,84742.0,84741.0,0.0625118]
[1740604357452,0.00569923,84742.0,84741.0,0.0957518]
[1740604357673,0.35385,84782.0,84743.0,0.04]
[1740604357873,0.19551309,84757.0,84756.0,0.05454085]
[1740604358106,0.176976,84757.0,84756.0,0.05454085]
[1740604358252,0.18227233,84757.0,84756.0,0.05454085]
[1740604358884,0.18227233,84757.0,84756.0,0.0625118]
[1740604360186,0.18227233,84757.0,84756.0,0.04797095]
[1740604360406,0.18217334,84757.0,84756.0,0.04797095]
[1740604360586,0.18217334,84757.0,84756.0,0.02797095]
[1740604361012,0.18217334,84757.0,84756.0,0.0425118]
[1740604361539,0.18217334,84757.0,84756.0,0.02797095]
[1740604361752,0.18217334,84757.0,84756.0,0.04797095]
[1740604362088,0.18217334,84757.0,84756.0,0.04]
[1740604363297,0.18217334,84757.0,84756.0,0.02]
[1740604363515,0.18217334,84757.0,84756.0,0.04]
[1740604364070,0.18217334,84757.0,84756.0,0.02]
[1740604364511,0.18217334,84757.0,84756.0,0.04]
[1740604364681,0.18217334,84757.0,84756.0,0.02]
[1740604364838,0.17687701,84757.0,84756.0,0.02]
[1740604365442,0.42942679,84757.0,84756.0,0.04]
[1740604366965,0.42942679,84757.0,84756.0,0.02]
[1740604367166,0.42942679,84757.0,84756.0,0.04]
[1740604367478,0.25254978,84757.0,84751.0,0.02]
[1740604367678,0.17698,84755.0,84754.0,0.02]
[1740604368503,0.19551253,84755.0,84754.0,0.02]
[1740604368924,0.19551253,84755.0,84754.0,0.04]
[1740604369127,0.17698,84755.0,84754.0,0.04]
[1740604370164,0.17698,84755.0,84754.0,0.05454085]
[1740604370793,0.17698,84755.0,84754.0,0.03454085]
[1740604370794,0.19550967,84755.0,84754.0,0.03454085]
[1740604371235,0.19550967,84755.0,84754.0,0.05454085]
[1740604371397,0.10657546,84755.0,84754.0,0.05454085]
[1740604371596,0.19550967,84755.0,84754.0,0.05454085]
[1740604372746,0.19550967,84755.0,84754.0,0.03454085]
[1740604372974,0.19550967,84755.0,84754.0,0.05454085]
[1740604373974,0.19550967,84755.0,84754.0,0.03454085]
[1740604374178,0.19550967,84755.0,84754.0,0.05454085]
[1740604376026,0.19550967,84755.0,84754.0,0.0625118]
[1740604377274,0.19550967,84755.0,84754.0,0.07536068]
[1740604379085,0.19550967,84755.0,84754.0,0.06081983]
[1740604379706,0.17698,84755.0,84754.0,0.07668716]
[1740604380501,0.17698,84755.0,84754.0,0.11075383]
[1740604380709,0.17698,84755.0,84754.0,0.12529468]
[1740604381074,0.17698,84755.0,84754.0,0.10942735]
[1740604381570,0.17698,84755.0,84754.0,0.08942735]
[1740604382432,0.1502987,84755.0,84754.0,0.0748865]
[1740604382811,0.16882878,84755.0,84754.0,0.0748865]
[1740604383022,0.16882878,84755.0,84754.0,0.09027395]
[1740604383224,0.16882878,84755.0,84754.0,0.11027395]
[1740604384646,0.16882878,84755.0,84754.0,0.09742507]
[1740604385464,0.16882878,84755.0,84754.0,0.13359972]
[1740604385758,0.16882878,84755.0,84754.0,0.11359972]
[1740604386201,0.25654349,84755.0,84754.0,0.09905887]
[1740604386351,0.16882878,84755.0,84754.0,0.04288422]
[1740604386556,0.5157666,84755.0,84754.0,0.04288422]
[1740604387576,0.5157666,84755.0,84754.0,0.05565289]
[1740604389150,0.42137856,84755.0,84754.0,0.11194884]
[1740604389707,0.42137856,84755.0,84754.0,0.07565289]
[1740604389912,0.42137856,84755.0,84754.0,0.05565289]
[1740604390437,0.40284848,84755.0,84754.0,0.05565289]
[1740604390639,0.40284848,84755.0,84754.0,0.07565289]
[1740604392037,0.40284848,84755.0,84754.0,0.05565289]
[1740604392722,0.40284848,84755.0,84754.0,0.09198325]
[1740604392922,0.40284848,84755.0,84754.0,0.11198325]
[1740604393244,0.40284848,84755.0,84754.0,0.09198325]
[1740604393439,0.40284848,84755.0,84754.0,0.11198325]
[1740604393993,0.40284848,84755.0,84754.0,0.09198325]
[1740604394602,0.40284848,84755.0,84754.0,0.11198325]
[1740604394603,0.40327178,84755.0,84754.0,0.11198325]
[1740604394964,0.42180411,84755.0,84754.0,0.11198325]
[1740604395172,0.40327178,84755.0,84754.0,0.11198325]
[1740604397725,0.42180351,84755.0,84754.0,0.11198325]
[1740604398132,0.42180351,84755.0,84754.0,0.07791658]
[1740604398298,0.42180351,84755.0,84754.0,0.09791658]
[1740604398750,0.42180351,84755.0,84754.0,0.05791658]
[1740604399596,0.47699417,84755.0,84754.0,0.05791658]
[1740604399943,0.42180351,84755.0,84754.0,0.05791658]
[1740604401099,0.51619155,84755.0,84754.0,0.02158622]
[1740604401833,0.51619155,84755.0,84754.0,0.00881755]
[1740604402048,0.49765982,84755.0,84754.0,0.00881755]
[1740604402953,0.20288043,84755.0,84754.0,0.00881755]
[1740604403312,0.37986043,84755.0,84754.0,0.00881755]
[1740604404865,0.28547239,84755.0,84754.0,0.00881755]
[1740604405079,0.1774033,84755.0,84754.0,0.0765584]
[1740604405284,0.19593437,84755.0,84754.0,0.0765584]
[1740604405588,0.19593437,84755.0,84754.0,0.08935046]
[1740604406461,0.01895437,84755.0,84754.0,0.08935046]
[1740604406679,0.0004233,84757.0,84756.0,0.08]
[1740604406877,0.1773993,84757.0,84756.0,0.13249992]
[1740604407061,0.1773993,84757.0,84756.0,0.07084878]
[1740604407440,0.15072554,84757.0,84756.0,0.06774085]
[1740604407601,0.15072554,84757.0,84756.0,0.08850386]
[1740604410424,0.15072554,84757.0,84756.0,0.16490386]
[1740604412574,0.15072554,84757.0,84756.0,0.49220386]
[1740604413371,0.15072554,84757.0,84756.0,0.47220386]
[1740604413573,0.15072554,84757.0,84756.0,0.49220386]
[1740604413742,0.15072554,84757.0,84756.0,0.47220386]
[1740604414146,0.0050796,84837.0,84768.0,0.02]
[1740604414347,0.176972,84759.0,84758.0,0.02]
[1740604414545,0.176972,84759.0,84758.0,0.04770085]
[1740604414998,0.176972,84759.0,84758.0,0.02]
[1740604415401,0.176972,84759.0,84758.0,0.04797095]
[1740604416692,0.176972,84759.0,84758.0,0.0625118]
[1740604417136,0.1773953,84759.0,84758.0,0.0625118]
[1740604419334,0.0004233,84759.0,84758.0,0.1412118]
[1740604419540,0.0004233,84759.0,84758.0,0.51016311]
[1740604419762,0.0004233,84759.0,84758.0,0.6854858]
[1740604419973,0.0004233,84759.0,84758.0,0.5085118]
[1740604420192,0.0004233,84759.0,84758.0,0.7350858]
[1740604420404,0.0004233,84759.0,84758.0,0.5581118]
[1740604420629,0.0004233,84759.0,84758.0,0.9850858]
[1740604420925,0.41851277,84769.0,84768.0,0.09454085]
[1740604421572,0.41851277,84769.0,84768.0,0.01454085]
[1740604421867,0.41851277,84769.0,84768.0,0.03454085]
[1740604422096,0.41851277,84769.0,84768.0,0.05454085]
[1740604422566,0.41851277,84769.0,84768.0,0.0825118]
[1740604423680,0.41851277,84769.0,84768.0,0.0425118]
[1740604423837,0.41851277,84769.0,84768.0,0.0225118]
[1740604424045,0.41851277,84769.0,84768.0,0.04797095]
[1740604424248,0.41851277,84769.0,84768.0,0.02797095]
[1740604424895,0.41851277,84769.0,84768.0,0.0425118]
[1740604425317,0.41851277,84769.0,84768.0,0.04797095]
[1740604425493,0.41851277,84769.0,84768.0,0.02797095]
[1740604425689,0.41851277,84769.0,84768.0,0.04797095]
[1740604425893,0.41851277,84769.0,84768.0,0.0425118]
[1740604426094,0.41851277,84769.0,84768.0,0.02797095]
[1740604426731,0.41851277,84769.0,84768.0,0.03454085]
[1740604427330,0.41851277,84769.0,84765.0,0.02]
[1740604427331,0.34963086,84769.0,84765.0,0.02]
[1740604427533,0.176978,84756.0,84755.0,0.00797095]
[1740604427758,0.176978,84756.0,84755.0,0.02797095]
[1740604427971,0.176978,84756.0,84755.0,0.04797095]
[1740604428173,0.176978,84756.0,84755.0,0.0625118]
[1740604428346,0.176978,84756.0,84755.0,0.05454085]
[1740604429608,0.176978,84756.0,84755.0,0.0625118]
[1740604431038,0.176978,84756.0,84755.0,0.04797095]
[1740604431517,0.176978,84756.0,84755.0,0.02797095]
[1740604431712,0.19550692,84756.0,84755.0,0.00797095]
[1740604432142,0.30357601,84756.0,84755.0,0.00797095]
[1740604432352,0.17698,84755.0,84754.0,0.0008466]
[1740604432558,0.34886804,84755.0,84754.0,0.0008466]
[1740604432893,0.57679378,84755.0,84754.0,0.0008466]
[1740604433095,0.45693713,84755.0,84754.0,0.0008466]
[1740604434730,0.10806909,84797.0,84759.0,0.02]
[1740604435077,0.0050796,84803.0,84802.0,0.07454085]
[1740604435280,0.00520217,84803.0,84802.0,0.08770085]
[1740604435480,0.00520217,84803.0,84802.0,0.26623327]
[1740604435672,0.0250796,84837.0,84826.0,0.07454085]
[1740604435998,0.0250796,84837.0,84826.0,0.27137285]
[1740604436202,0.0250796,84837.0,84836.0,0.27135185]
[1740604436380,0.0250796,84837.0,84836.0,0.32041844]
[1740604436619,0.00520207,84837.0,84836.0,0.32041844]
[1740604436822,0.01850826,84858.0,84843.0,0.256797]
[1740604437024,0.01850826,84858.0,84857.0,0.06]
[1740604437339,0.176764,84859.0,84858.0,0.06]
[1740604438088,0.176764,84859.0,84858.0,0.06797095]
[1740604438290,0.176764,84859.0,84858.0,0.0825118]
[1740604439493,0.176764,84859.0,84858.0,0.0425118]
[1740604439691,0.176764,84859.0,84858.0,0.0756318]
[1740604440364,0.1771873,84859.0,84858.0,0.0756318]
[1740604440788,0.1771873,84859.0,84858.0,0.05454085]
[1740604441238,0.0004233,84859.0,84858.0,0.05454085]
[1740604441439,0.1771863,84859.0,84858.0,0.05619028]
[1740604441707,0.1771863,84859.0,84858.0,0.05454085]
[1740604442523,0.0004233,84859.0,84858.0,0.05454085]
[1740604442674,0.1771863,84859.0,84858.0,0.07454085]
[1740604443523,0.0004233,84859.0,84858.0,0.09454085]
[1740604443747,0.0004233,84859.0,84858.0,0.09619007]
[1740604444126,0.0004233,84859.0,84858.0,0.09454085]
[1740604444810,0.1771863,84859.0,84858.0,0.09454085]
[1740604445162,0.1771863,84859.0,84858.0,0.32454085]
[1740604445312,0.1771863,84859.0,84858.0,0.33766085]
[1740604445522,0.1771863,84859.0,84858.0,0.30454085]
[1740604445723,0.1771863,84859.0,84858.0,0.29766085]
[1740604445932,0.1771863,84859.0,84858.0,0.0756318]
[1740604446116,0.1771863,84859.0,84858.0,0.0956318]
[1740604446747,0.235675,84863.0,84861.0,0.02]
[1740604446969,0.41255242,84863.0,84862.0,0.03454085]
[1740604447312,0.41255242,84863.0,84862.0,0.02]
[1740604447453,0.41255242,84863.0,84862.0,0.04]
[1740604447647,0.41255242,84863.0,84855.0,0.01312]
[1740604447648,0.41255242,84863.0,84860.0,0.00797095]
[1740604447844,0.176759,84861.0,84860.0,0.02797095]
[1740604448055,0.176759,84861.0,84860.0,0.00797095]
[1740604448260,0.212257,84861.0,84860.0,0.00797095]
[1740604448468,0.212257,84861.0,84860.0,0.04797095]
[1740604448469,0.32032609,84861.0,84860.0,0.04797095]
[1740604448671,0.28482809,84861.0,84860.0,0.02797095]
[1740604449283,0.176761,84860.0,84859.0,0.02]
[1740604449488,0.10806909,84861.0,84856.0,0.10217127]
[1740604449489,0.176767,84857.0,84856.0,0.10217127]
[1740604450102,0.27104381,84857.0,84856.0,0.10217127]
[1740604450486,0.25318094,84857.0,84856.0,0.10217127]
[1740604451524,0.25318094,84857.0,84855.0,0.02]
[1740604451525,0.17677,84856.0,84855.0,0.02]
[1740604451726,0.17677,84856.0,84855.0,0.05454085]
[1740604452133,0.17677,84856.0,84844.0,0.0008458]
[1740604452134,0.17687742,84863.0,84862.0,0.05454085]
[1740604452337,0.17687742,84863.0,84862.0,0.06766085]
[1740604455273,0.23567,84865.0,84863.0,0.01454085]
[1740604455508,0.176753,84864.0,84863.0,0.03454085]
[1740604456273,0.176753,84864.0,84863.0,0.05454085]
[1740604456473,0.1818196,84870.0,84869.0,0.05454085]
[1740604457145,0.0050796,84870.0,84869.0,0.05454085]
[1740604457477,0.1818196,84870.0,84869.0,0.06416085]
[1740604457845,0.0050796,84870.0,84869.0,0.0825118]
[1740604458063,0.0050796,84870.0,84869.0,0.10416108]
[1740604458340,0.1818196,84870.0,84869.0,0.10416094]
[1740604458539,0.1818196,84870.0,84869.0,0.1025118]
[1740604459181,0.0050796,84870.0,84869.0,0.1025118]
[1740604459316,0.1818196,84870.0,84869.0,0.10416091]
[1740604459513,0.1818196,84870.0,84869.0,0.1025118]
[1740604460475,0.1818196,84870.0,84869.0,0.0825118]
[1740604460678,0.1818196,84870.0,84869.0,0.09530386]
[1740604461037,0.18063992,84870.0,84869.0,0.09530386]
[1740604461847,0.1540039,84870.0,84869.0,0.09530386]
[1740604462052,0.1540039,84870.0,84869.0,0.08842386]
[1740604462424,0.1540039,84870.0,84869.0,0.03384301]
[1740604462605,0.1540039,84870.0,84869.0,0.08682212]
[1740604462754,0.1540039,84870.0,84869.0,0.06682212]
[1740604463182,0.1540039,84870.0,84869.0,0.08136297]
[1740604463513,0.1540039,84870.0,84869.0,0.06682212]
[1740604463644,0.1540039,84870.0,84869.0,0.08682212]
[1740604463843,0.1540039,84870.0,84869.0,0.10136297]
[1740604464501,0.1540039,84870.0,84869.0,0.08838386]
[1740604465317,0.235647,84873.0,84871.0,0.04]
[1740604465530,0.176734,84873.0,84872.0,0.04]
[1740604465753,0.176734,84873.0,84872.0,0.05308]
[1740604465970,0.176734,84873.0,84872.0,0.06762085]
[1740604466686,0.13973885,84873.0,84872.0,0.06762085]
[1740604466907,0.13973885,84873.0,84872.0,0.08838386]
[1740604468513,0.13973885,84873.0,84872.0,0.06838386]
[1740604469900,0.15824108,84873.0,84872.0,0.08838386]
[1740604470119,0.15824108,84873.0,84872.0,0.04076301]
[1740604470420,0.15824108,84873.0,84872.0,0.06076301]
[1740604471226,0.15824108,84873.0,84872.0,0.07530386]
[1740604472406,0.15824108,84873.0,84872.0,0.04076301]
[1740604472570,0.15824108,84873.0,84872.0,0.02076301]
[1740604472933,0.26631017,84873.0,84872.0,0.02076301]
[1740604473364,0.01756025,84874.0,84872.0,0.02076301]
[1740604473557,0.176734,84873.0,84872.0,0.02076301]
[1740604474967,0.26685472,84873.0,84872.0,0.00797095]
[1740604475341,0.176751,84865.0,84864.0,0.01279206]
[1740604476343,0.176753,84864.0,84863.0,0.0008472]
[1740604477298,0.505053,84864.0,84863.0,0.0008472]
[1740604480598,0.537465,84864.0,84863.0,0.0008472]
[1740604481155,0.55597313,84864.0,84863.0,0.0008472]
[1740604481377,0.176792,84845.0,84844.0,0.0008458]
[1740604481575,0.505092,84845.0,84844.0,0.0008458]
[1740604481850,0.585792,84845.0,84844.0,0.00096822]
[1740604482062,0.621298,84845.0,84844.0,0.00096822]
[1740604482269,0.74115465,84845.0,84844.0,0.00096822]
[1740604483233,0.176838,84823.0,84822.0,0.02]
[1740604483460,0.235746,84837.0,84822.0,0.02]
[1740604483701,0.176838,84823.0,84822.0,0.02]
[1740604484282,0.235782,84824.0,84822.0,0.02]
[1740604484516,0.235782,84825.0,84822.0,0.02]